Cogmind - Beta 16 @@@ ROGUE MODE // 2025.12.01 @ 16:13:26 Player: arkn Result: Destroyed by P-70 Sage with High-powered Shock Rifle Performance ------------- Evolutions (5) 2500 Regions Visited (8) 1600 Robots Destroyed (84) 420 Value Destroyed (3142) 3142 Prototype IDs (28) 560 Alien Tech Used (0) 0 Bonus (692) 692 TOTAL SCORE: 8914 Bonus ------- High Alert Combat Kills 311 Follower Combat Kills 81 Aligned with FarCom 300 Cogmind --------- Core Integrity 0/1000 Matter 156/300 Energy 311/315 System Corruption 19% Temperature Cool (0) Movement Core (1150) Ox22 Location -5/Factory Parts ------- > --- POWER (1) -------- Neutrino Core > --- PROPULSION (4) --- (None) > --- UTILITY (10) ----- High-capacity Storage Unit Advanced Trap Scanner (fused) Machine Analyzer Enhanced Optical Array Advanced Signal Interpreter Advanced Melee Analysis Suite Advanced Melee Analysis Suite > --- WEAPON (2) ------- KE Penetrator KE Penetrator > --- INVENTORY (20) --- Experimental Heat Sink Advanced Trap Scanner Advanced Terrain Scanner Advanced Terrain Scan Processor Advanced Recoil Stabilizer Improved Kinecellerator Improved Weapon Cycler Transmission Jammer Layered Heavy Armor Plating Hypervelocity Coil Gun Mass Driver Mass Driver Mass Driver Proton Missile Launcher Improved Plasma Cutter Peak State ------------ > --- POWER ------------ Neutrino Core > --- PROPULSION ------- Armored Medium Treads Heavy Treads > --- UTILITY ---------- Advanced Cooling System High-capacity Storage Unit Advanced Trap Scanner Machine Analyzer Enhanced Optical Array Advanced Sensor Array Advanced Signal Interpreter Advanced Targeting Computer Advanced Melee Analysis Suite Advanced Recoil Stabilizer > --- WEAPON ----------- KE Penetrator Heavy Pick > --- INVENTORY -------- Neutrino Core Thunder Leg Experimental Heat Sink Advanced Cooling System Advanced Trap Scanner Advanced Terrain Scanner Advanced Terrain Scan Processor Improved Kinecellerator Improved Weapon Cycler Transmission Jammer Medium Reactive Plating Improved System Restoration Module KE Penetrator Hypervelocity Coil Gun Mass Driver Mass Driver Mass Driver Proton Missile Launcher Improved Plasma Cutter Chainsword [Rating: 92] Favorites ----------- Power Neutrino Core Engine Light Ion Engine Power Core Neutrino Core Propulsion Light Treads Treads Light Treads Leg Thunder Leg Wheel Wheel Hover Unit Antigrav System Utility High-capacity Storage Unit Device Structural Scanner Storage High-capacity Storage Unit Processor Machine Analyzer Protection Powered Armor Weapon Heavy Pick Energy Gun EM Pulse Gun Ballistic Gun Gauss Rifle Ballistic Cannon Assault Cannon Launcher Proton Missile Launcher Special Weapon Mining Laser Slashing Weapon Chainsword Piercing Weapon Heavy Pick Build | -11 -10 -10 -10 -9 -8 -7 -6 -5 ------- Run | Yrd Mat Min Exi Min Mat Fac Fac Fac Slots Evolved 10 | . . . . . 4 2 2 2 Power . | . . . . . . . . . Propulsion 2 | . . . . . 1 1 . . Utility 8 | . . . . . 3 1 2 2 Weapon . | . . . . . . . . . Parts Attached 83 | 7 2 4 1 2 12 11 7 37 Power 9 | 1 . 1 . . 2 1 1 3 Engine 3 | 1 . . . . 1 . 1 . Core 6 | . . 1 . . 1 1 . 3 Reactor . | . . . . . . . . . Propulsion 16 | 2 2 . . . 2 3 . 7 Treads 12 | . 2 . . . 2 3 . 5 Leg 1 | . . . . . . . . 1 Wheel 2 | 2 . . . . . . . . Hover 1 | . . . . . . . . 1 Flight . | . . . . . . . . . Utility 32 | 2 . . 1 1 5 3 3 17 Device 17 | 1 . . . . 4 1 1 10 Storage 3 | 1 . . 1 . 1 . . . Processor 7 | . . . . . . . 2 5 Hackware . | . . . . . . . . . Protection 5 | . . . . 1 . 2 . 2 Artifact . | . . . . . . . . . Weapon 26 | 2 . 3 . 1 3 4 3 10 Energy Gun 3 | 1 . 1 . 1 . . . . Energy Cannon . | . . . . . . . . . Ballistic Gun 10 | 1 . 1 . . 2 1 1 4 Ballistic Cannon 7 | . . . . . 1 1 2 3 Launcher 1 | . . . . . . . . 1 Special Weapon 1 | . . 1 . . . . . . Impact Weapon . | . . . . . . . . . Slashing Weapon 3 | . . . . . . 2 . 1 Piercing Weapon 1 | . . . . . . . . 1 Special Melee Weapon . | . . . . . . . . . Unidentified Prototypes 5 | . . . . . 2 2 . 1 Parts Lost 27 | . . 1 . . . 1 . 25 Power 1 | . . . . . . . . 1 Propulsion 10 | . . . . . . 1 . 9 Utility 12 | . . . . . . . . 12 Weapon 4 | . . 1 . . . . . 3 Highest Loss Streak 9 | . . 1 . . . 1 . 9 To Critical Strikes 1 | . . . . . . . . 1 Average Backups 17 | 2 7 8 8 9 18 19 19 19 Power 1 | . . . . . 1 1 1 1 Propulsion . | 1 2 1 1 1 1 . . . Utility 8 | . 2 4 5 6 8 10 10 8 Weapon 6 | . 2 1 1 1 6 7 8 8 Tool/Special . | . . . . . . . . . Unused Backups 31 | . . 1 1 1 2 2 5 19 Power 2 | . . . . . . 1 . 1 Propulsion . | . . . . . . . . . Utility 18 | . . 1 1 1 2 1 2 10 Weapon 9 | . . . . . . . 2 7 Tool/Special 2 | . . . . . . . 1 1 Average Slot Usage (%) 96 | . 100 100 100 100 99 99 98 92 Engine 1 | . 14 5 . . . . 1 . Core 6 | . . 8 14 14 9 7 4 4 Treads 22 | . 20 28 28 28 26 29 26 16 Device 22 | . 14 14 14 7 26 29 26 21 Storage 7 | . 14 14 14 14 9 7 6 5 Processor 11 | . . . . . . . 11 26 Protection 4 | . . . . 6 9 7 6 2 Energy Gun 1 | . 14 10 . 6 1 . . . Ballistic Gun 7 | . 14 14 14 14 9 7 6 3 Ballistic Cannon 3 | . . . . . 7 4 4 1 Slashing Weapon 1 | . . . . . . 2 1 1 Piercing Weapon 1 | . . . . . . . . 3 Peak Build Rating 92 | 7 8 10 11 14 35 52 61 92 Average Rating 50 | 5 7 9 10 12 33 48 58 76 On Entrance 21 | . 7 8 10 11 14 35 51 61 Avg Prop Armor Cover (%) 4 | . . . . . . . . 4 Naked Turns . | . . . . . . . . . Heaviest Build 86 | 13 13 15 19 23 62 74 80 86 Greatest Support 120 | 26 40 40 40 40 60 80 80 120 Greatest Overweight (x) 22 | . . . . . 1 1 . 22 Average Overweight (x) . | . . . . . . . . . Largest Inventory Capacity 20 | 8 8 8 10 10 20 20 20 20 Average Capacity 17 | 7 8 8 8 10 19 20 20 20 Most Carried 20 | 6 8 8 9 10 20 20 20 20 Average Carried 17 | 3 7 7 8 9 18 19 19 19 Final Capacity 20 | 8 8 8 10 10 20 20 20 20 Final Carried 20 | 6 8 8 9 10 20 20 20 16 Class Distribution -------------------- 24% | Skirmisher 23% | Mutant 17% | Assassin 12% | Scavenger-Mutant 10% | Gladiator 5% | Scavenger-Skirmisher 5% | Scavenger-Assassin Dominant Class ---------------- Mutant | -10/Materials Mutant | -10/Mines Mutant | -10/Exiles Mutant | -9/Mines Scavenger-Mutant | -8/Materials Skirmisher | -7/Factory Skirmisher | -6/Factory Gladiator | -5/Factory Resources | -11 -10 -10 -10 -9 -8 -7 -6 -5 ----------- Run | Yrd Mat Min Exi Min Mat Fac Fac Fac Matter Collected 3208 | 242 150 74 10 36 402 281 267 1746 Remotely 221 | . . . . . . . . 221 Salvage Created 3620 | 128 195 109 . 75 302 489 244 2078 Parts 205 | 9 16 2 . 2 18 20 19 119 Haulers Intercepted 3 | . 1 . . . 1 . . 1 Recyclers Shooed 7 | 1 . 1 . . . . . 5 Parts Field Recycled . | . . . . . . . . . Retrieved Matter . | . . . . . . . . . Parts Self-Destructed . | . . . . . . . . . Prevented . | . . . . . . . . . Parts Restored . | . . . . . . . . . Kills | -11 -10 -10 -10 -9 -8 -7 -6 -5 ------- Run | Yrd Mat Min Exi Min Mat Fac Fac Fac Combat Hostiles Destroyed 55 | . 6 2 . 1 5 6 4 31 Melee 11 | . . . . . . . . 11 Guns 19 | . 6 2 . 1 2 1 . 7 Cannons 24 | . . . . . 3 5 4 12 AOE 1 | . . . . . . . . 1 Classes Destroyed 11 | 2 3 1 . . 1 1 1 2 Worker 4 | . . . . . . . 1 3 Builder 4 | . . . . . . . . 4 Tunneler 5 | 2 . . . . 1 . . 2 Hauler 3 | . 1 . . . 1 . . 1 Recycler 8 | 1 . . . 1 . 3 . 3 Watcher 5 | . 2 . . . . . 2 1 Swarmer 12 | . 6 . . 1 . . . 5 Grunt 11 | . . 2 . . 3 3 . 3 Sentry 6 | . . . . . 2 1 . 3 Hunter 1 | . . . . . . . . 1 Programmer 25 | . . . . . . 2 4 19 Best Kill Streak 6 | 2 3 2 . 1 3 4 2 6 Combat Bots Only 5 | . 3 2 . 1 3 3 1 5 Max Kills in Single Turn 2 | 1 1 1 . 1 1 2 1 2 Gunslinging . | . . . . . . . . . Exploded 1 | . . . . . . . . 1 Melee 1 | . . . . . . . . 1 Uniques/NPCs Destroyed . | . . . . . . . . . Combat | -11 -10 -10 -10 -9 -8 -7 -6 -5 -------- Run | Yrd Mat Min Exi Min Mat Fac Fac Fac Hostile Shots Fired 512 | . 28 23 . 3 23 31 20 384 Missed 135 | . 6 5 . 2 2 7 8 105 Hits 377 | . 22 18 . 1 21 24 12 279 Projectile 377 | . 22 18 . 1 21 24 12 279 AOE 4 | . . . . . . . . 4 Critical Strikes 16 | . 1 . . . 2 . 2 11 Part Disruptions 3 | . . . . . . . . 3 Damage Taken 6717 | . 163 254 . 9 310 269 181 5531 Core 1204 | . 17 115 . . 28 32 . 1012 Absorbed by Shields 279 | . . . . . . . . 279 Core Remaining (%) 87 | 100 . . . 47 94 95 100 . Volleys Fired 191 | 6 28 15 . 2 13 16 19 92 Largest 2 | 2 2 2 . 2 2 2 2 2 Hottest 120 | 60 60 100 . 120 90 68 77 84 Shots Fired 375 | 12 56 27 . 4 26 31 41 178 Gun 245 | 12 56 25 . 3 16 15 22 96 Cannon 121 | . . . . . 10 16 19 76 Launcher 6 | . . . . . . . . 6 Special 3 | . . 2 . 1 . . . . Kinetic 316 | 6 28 13 . 2 23 31 41 172 Thermal 7 | . . 2 . 2 3 . . . Explosive . | . . . . . . . . . Electromagnetic 52 | 6 28 12 . . . . . 6 Robot Hit Streak 16 | 4 5 15 . 1 14 7 8 16 Robot Miss Streak 5 | 1 4 2 . 1 1 2 2 5 Penetration Max 1 | . . . . . . . 1 1 Secondary Targets . | . . . . . . . . . Shots Hit Robots 280 | 7 30 20 . 2 20 22 26 153 Core Hits 124 | 4 12 6 . 2 9 11 10 70 Critical Kills 11 | . . . . . . 1 . 10 Critical Parts Destroyed 25 | . . . . . . 1 4 20 Critical Strikes 48 | . . 1 . . 3 4 4 36 Burn 1 | . . . . . 1 . . . Destroy 36 | . . . . . . 2 4 30 Blast 5 | . . . . . 2 2 . 1 Corrupt 1 | . . 1 . . . . . . Sever 1 | . . . . . . . . 1 Impale 4 | . . . . . . . . 4 Melee Attacks 100 | . . . . . . 6 6 88 Impact . | . . . . . . . . . Slashing 22 | . . . . . . 6 6 10 Piercing 78 | . . . . . . . . 78 Sneak Attacks 8 | . . . . . . . . 8 Combat Hostiles . | . . . . . . . . . Follow-up Attacks 3 | . . . . . . . . 3 Damage Inflicted 7650 | 102 455 289 . 33 390 526 584 5271 Guns 3310 | 102 407 264 . 33 178 238 153 1935 Cannons 2296 | . . . . . 212 288 431 1365 Explosions 519 | . 48 25 . . . . . 446 Melee 1525 | . . . . . . . . 1525 Ramming . | . . . . . . . . . Kinetic 5093 | 24 174 125 . 15 345 526 584 3300 Thermal 136 | . 48 25 . 18 45 . . . Explosive . | . . . . . . . . . Electromagnetic 896 | 78 233 139 . . . . . 446 Impact . | . . . . . . . . . Slashing 82 | . . . . . . . . 82 Piercing 1443 | . . . . . . . . 1443 Highest Corruption 20 | . . . . . . 1 2 20 Average Corruption 8 | . . . . . . 1 1 12 Corruption Purged 14 | . . . . . . . . 14 Corruption Blocked . | . . . . . . . . . Effects 187 | . . . . . . 5 17 165 Message Errors 44 | . . . . . . 1 2 41 Matter Fused 45 | . . . . . . . 5 40 Heat Flow Errors 22 | . . . . . . 2 1 19 Energy Discharges 24 | . . . . . . . 3 21 Parts Rejected 2 | . . . . . . . . 2 Parts Fused 2 | . . . . . . . . 2 Data Loss (minor) 23 | . . . . . . 1 3 19 Data Loss (major) 9 | . . . . . . 1 . 8 Misfires 8 | . . . . . . . 3 5 Alerts 5 | . . . . . . . . 5 Misdirections 1 | . . . . . . . . 1 Weapon Failures 2 | . . . . . . . . 2 Overload Shots . | . . . . . . . . . Overflow Damage 174 | . . . . . . . . 174 Projectiles 18 | . . . . . . . . 18 Explosions 5 | . . . . . . . . 5 Melee 151 | . . . . . . . . 151 Knockbacks 25 | . . . . . 2 2 4 17 Impact . | . . . . . . . . . Kinetic 23 | . . . . . 2 2 4 15 Secondary 2 | . . . . . . . . 2 Self-Inflicted Damage 47 | . . 38 . . . . . 9 Shots 2 | . . 1 . . . . . 1 Rammed . | . . . . . . . . . Targets Rammed . | . . . . . . . . . Kicked . | . . . . . . . . . Crushed . | . . . . . . . . . Highest Temperature 250 | . 20 108 . 36 27 184 182 250 Average Temperature 70 | . 20 57 . 18 11 112 109 97 Received Heat Transfer 903 | . . 123 . . 189 99 . 492 Siege Activations . | . . . . . . . . . Martial Activations . | . . . . . . . . . Shielding Activations . | . . . . . . . . . Robots Disrupted . | . . . . . . . . . Combat Hostiles . | . . . . . . . . . Robots Corrupted 1 | . . . . . . . . 1 Combat Hostiles . | . . . . . . . . . Parts Fried 3 | . 2 . . . . . . 1 Impact Corruptions 1 | . . . . . . . . 1 Robots Melted . | . . . . . . . . . Combat Hostiles . | . . . . . . . . . Parts Melted 1 | . . . . . . . . 1 Heat Transferred 322 | . 50 50 . 37 185 . . . Parts Sabotaged . | . . . . . . . . . Parts Stolen . | . . . . . . . . . Parts Stripped . | . . . . . . . . . Power Chain Reactions 2 | . 1 1 . . . . . . Alert | -11 -10 -10 -10 -9 -8 -7 -6 -5 ------- Run | Yrd Mat Min Exi Min Mat Fac Fac Fac Maximum Alert Level 3 | . . . . . . . . 3 Low Security (%) 78 | 100 100 100 . 100 100 100 100 45 Level 1 6 | . . . . . . . . 17 Level 2 8 | . . . . . . . . 22 Level 3 6 | . . . . . . . . 15 Level 4 . | . . . . . . . . . Level 5 . | . . . . . . . . . High Security . | . . . . . . . . . Max Security . | . . . . . . . . . Peak Influence 842 | 10 84 35 . 89 62 90 31 842 Initial 22 | . . . . . . . 22 11 Average 134 | 2 20 2 . 20 4 21 5 323 Influence Increases 2653 | 15 196 112 . 105 153 226 225 1621 Destroy 0b10 Robot/C 1200 | . 120 80 . 80 100 120 80 620 Destroy 0b10 Robot/NC 145 | 15 15 . . 5 10 15 15 70 Destroy Leader 336 | . 26 20 . 10 32 40 44 164 Allied During Kill 16 | . . 7 . 9 . . . . Successful Hack 201 | . 15 . . . 10 10 61 105 Disable Machine 105 | . . . . . . 30 15 60 Anti-Garrison Action 400 | . . . . . . . . 400 Destroy Structure 145 | . 5 5 . 1 1 11 10 112 Lose Combat Pursuer 105 | . 15 . . . . . . 90 Influence Decreases 1804 | 15 196 112 . 105 153 179 249 795 Entered New Map 37 | . . . . . . . 25 12 Time Decay 1495 | 15 196 82 . 105 153 169 224 551 Lost Part 252 | . . 10 . . . 10 . 232 Lost Ally 20 | . . 20 . . . . . . Squads Dispatched 30 | . . . . . 1 4 7 18 Investigation 7 | . . . . . . 2 2 3 Extermination 17 | . . . . . . 2 5 10 Reinforcement 5 | . . . . . 1 . . 4 Assault 1 | . . . . . . . . 1 Garrison . | . . . . . . . . . Intercept . | . . . . . . . . . Searches Triggered . | . . . . . . . . . Construction Impeded 3 | . . . . . . . . 3 Haulers Reinforced . | . . . . . . . . . Active Scanning Responses . | . . . . . . . . . Cargo Convoy Interrupts . | . . . . . . . . . Stealth | -11 -10 -10 -10 -9 -8 -7 -6 -5 --------- Run | Yrd Mat Min Exi Min Mat Fac Fac Fac Distress Signals . | . . . . . . . . . Communications Jammed . | . . . . . . . . . Distress Signals . | . . . . . . . . . Times Spotted 93 | . 10 3 . 1 6 6 6 61 Peak Tracking Total 6 | . 3 2 . 2 3 2 2 6 Tactical Retreats 3 | . 1 . . . . . . 2 Traps | -11 -10 -10 -10 -9 -8 -7 -6 -5 ------- Run | Yrd Mat Min Exi Min Mat Fac Fac Fac Traps Triggered 2 | . . . . . . . . 2 Indirectly 2 | . . . . . . . . 2 Trap Hack Attempts . | . . . . . . . . . Triggered . | . . . . . . . . . Disarmed . | . . . . . . . . . Reprogrammed . | . . . . . . . . . Reused . | . . . . . . . . . Traps Extracted . | . . . . . . . . . Installed . | . . . . . . . . . Triggered . | . . . . . . . . . Machines | -11 -10 -10 -10 -9 -8 -7 -6 -5 ---------- Run | Yrd Mat Min Exi Min Mat Fac Fac Fac Machines Disabled 7 | . . . . . . 2 1 4 Max in Single Turn 1 | . . . . . . 1 1 1 Garrison Access 5 | . . . . . 1 1 . 3 Machines Repaired . | . . . . . . . . . Machines Dismantled . | . . . . . . . . . Machines Sabotaged . | . . . . . . . . . Overloaded Fab Kills . | . . . . . . . . . Hacking | -11 -10 -10 -10 -9 -8 -7 -6 -5 --------- Run | Yrd Mat Min Exi Min Mat Fac Fac Fac Machines Accessed 41 | . 4 . 2 . 3 8 9 15 Terminals 19 | . 2 . . . 1 4 5 7 Fabricators 5 | . . . . . . 1 1 3 Repair Stations 1 | . 1 . . . . . . . Recycling Units 4 | . 1 . . . . 1 2 . Scanalyzers 4 | . . . . . 1 1 . 2 Garrison Access 6 | . . . . . 1 1 1 3 Total Hacks 110 | . 15 . 10 . 6 17 23 39 Successful 59 | . 9 . 10 . 5 5 11 19 Failed 50 | . 6 . . . 1 12 12 19 Catastrophic 9 | . 1 . . . . 3 2 3 Database Lockouts 1 | . . . . . . . . 1 Manual 74 | . 12 . 1 . 2 11 20 28 Terminals 52 | . 10 . . . 2 8 13 19 Fabricators 10 | . . . . . . 1 2 7 Repair Stations 2 | . 2 . . . . . . . Recycling Units 12 | . 3 . . . . 4 5 . Scanalyzers 9 | . . . . . 2 1 . 6 Garrison Access 15 | . . . . . 2 3 3 7 Terminal Hacks 13 | . 3 . 10 . . . . . Record 9 | . . . 9 . . . . . Terminal Index 1 | . 1 . . . . . . . Locate Traps 1 | . 1 . . . . . . . Zone Layout 1 | . 1 . . . . . . . Proto ID Catalog 1 | . . . 1 . . . . . Fabricator Hacks 4 | . . . . . . 1 1 2 Network Status 4 | . . . . . . 1 1 2 Repair Station Hacks . | . . . . . . . . . Recycling Unit Hacks . | . . . . . . . . . Scanalyzer 7 | . . . . . 2 . . 5 Retrieve Study 7 | . . . . . 2 . . 5 Garrison Access Hacks 3 | . . . . . 1 1 . 1 Seal Access 3 | . . . . . 1 1 . 1 Unauthorized Hacks 32 | . 6 . . . 2 3 10 11 Terminals 17 | . 3 . . . 2 1 4 7 Track 5 | . 2 . . . 1 . 1 1 Botnet 9 | . 1 . . . 1 1 2 4 Operators 3 | . . . . . . . 1 2 Fabricators 1 | . . . . . . . 1 . Report 1 | . . . . . . . 1 . Repair Stations 1 | . 1 . . . . . . . Mechanics 1 | . 1 . . . . . . . Recycling Units 7 | . 2 . . . . 1 4 . Monitor 3 | . 1 . . . . 1 1 . Reject 1 | . . . . . . . 1 . Recyclers 2 | . 1 . . . . . 1 . Mask 1 | . . . . . . . 1 . Scanalyzers . | . . . . . . . . . Garrison Access 6 | . . . . . . 1 1 4 Watchers 4 | . . . . . . 1 1 2 Jam 2 | . . . . . . . . 2 Data Cores Recovered . | . . . . . . . . . Used . | . . . . . . . . . Hacking Detections 31 | . 2 . . . 3 6 8 12 Full Trace Events 6 | . 1 . . . . 2 2 1 Feedback Events 1 | . . . . . . 1 . . Corruption 1 | . . . . . . 1 . . Feedback Blocked . | . . . . . . . . . Robot Schematics Acquired . | . . . . . . . . . Robots Built . | . . . . . . . . . Authchips . | . . . . . . . . . Time . | . . . . . . . . . Total Robot Build Rating . | . . . . . . . . . Part Schematics Acquired . | . . . . . . . . . Parts Built . | . . . . . . . . . Authchips . | . . . . . . . . . Time . | . . . . . . . . . Total Part Build Rating . | . . . . . . . . . Part Studies Acquired 7 | . . . . . 2 . . 5 Parts Repaired . | . . . . . . . . . Time . | . . . . . . . . . Parts Recycled . | . . . . . . . . . Recycled Matter . | . . . . . . . . . Retrieved Matter . | . . . . . . . . . Retrieved Components . | . . . . . . . . . Parts Scanalyzed . | . . . . . . . . . Part Schematics Acquired . | . . . . . . . . . Parts Damaged . | . . . . . . . . . Bothacking | -11 -10 -10 -10 -9 -8 -7 -6 -5 ------------ Run | Yrd Mat Min Exi Min Mat Fac Fac Fac Used RIF Installer . | . . . . . . . . . Robots Hacked . | . . . . . . . . . Non-combat . | . . . . . . . . . Combat . | . . . . . . . . . Robot Hacks Applied . | . . . . . . . . . Relay Couplers Released . | . . . . . . . . . Fabnet Peak Effective % . | . . . . . . . . . Robots Rewired . | . . . . . . . . . Allies Hacked . | . . . . . . . . . Hacks Repelled . | . . . . . . . . . Allies | -11 -10 -10 -10 -9 -8 -7 -6 -5 -------- Run | Yrd Mat Min Exi Min Mat Fac Fac Fac Total Allies 3 | . . 3 . . . . . . Largest Group 3 | . . 3 2 2 2 . . . Highest-Rated Group 40 | . . 40 24 24 24 . . . Highest-Rated Ally 16 | . . 16 16 16 16 . . . Total Orders 2 | . . . . . 2 . . . EXPLORE 2 | . . . . . 2 . . . Ally Attacks 33 | . . 15 . 9 9 . . . Total Damage 304 | . . 171 . 63 70 . . . Kills 5 | . . 2 . 3 . . . . Allies Corrupted . | . . . . . . . . . Allies Melted . | . . . . . . . . . Intel | -11 -10 -10 -10 -9 -8 -7 -6 -5 ------- Run | Yrd Mat Min Exi Min Mat Fac Fac Fac Active Infowar (turns) 14154 | 46 801 940 476 256 2522 1476 2063 5574 Optics 5573 | . . . . . . . . 5573 Sensors 5969 | . . . . . 174 1475 2063 2257 Structural 10612 | . . . . . 2522 1476 2063 4551 Traps 6441 | . . . . . . . 1048 5393 Seismic 2519 | 46 801 940 476 256 . . . . Machine Analysis 7442 | . . . . . . . 1868 5574 Robot Analysis Total . | . . . . . . . . . Derelict Logs Recovered 1 | . . 1 . . . . . . Drone Launches 2 | . . . . . 2 . . . Drone Recoveries 2 | . . . . . 2 . . . Exploration | -11 -10 -10 -10 -9 -8 -7 -6 -5 ------------- Run | Yrd Mat Min Exi Min Mat Fac Fac Fac Turns Passed 14447 | 118 801 940 476 477 2522 1476 2063 5574 Spaces Moved 6654 | 93 481 545 296 286 568 803 1143 2439 Core 10 | 2 . . . . . . . 8 Treads 6398 | . 340 545 296 286 568 803 1143 2417 Legs 9 | . . . . . . . . 9 Wheels 232 | 91 141 . . . . . . . Hover 5 | . . . . . . . . 5 Flight . | . . . . . . . . . Fastest Speed 50 | 50 90 160 160 160 160 162 162 160 Average Speed 170 | 90 139 160 160 160 203 164 162 182 Slowest Speed 1150 | 100 160 160 160 160 240 216 162 1150 Overloaded Moves . | . . . . . . . . . Propulsion Burnouts . | . . . . . . . . . Robots Hopped . | . . . . . . . . . Potential Cave-ins . | . . . . . . . . . Cave-ins Triggered . | . . . . . . . . . Exploration Rate (%) 49 | 6 48 98 71 64 52 18 30 61 Regions Visited 8 Branch Regions 3 Pre-discovered Areas 2 | . . 1 1 . . . . . Known Exits Taken 1 | . . . . . . . 1 . Unknown Exits Taken 7 | 1 1 1 1 1 1 1 . . Scrap Searched 1 | . . 1 . . . . . . Spaces Dug 46 | . . 1 . . . 5 5 35 Terrain Destroyed 89 | . 5 5 . 1 . 10 9 59 Melee 44 | . . . . . . 5 5 34 Projectile 37 | . . 2 . 1 . 5 4 25 AOE 8 | . 5 3 . . . . . . Terrain Rammed . | . . . . . . . . . Walls Destroyed . | . . . . . . . . . Machines Disabled . | . . . . . . . . . Actions | -11 -10 -10 -10 -9 -8 -7 -6 -5 --------- Run | Yrd Mat Min Exi Min Mat Fac Fac Fac Total 9216 | 111 554 585 300 299 1910 920 1314 3223 Wait 2032 | . 42 13 . 7 1288 66 116 500 Move 6646 | 92 480 544 295 285 567 802 1142 2439 Hop . | . . . . . . . . . Pick Up 78 | 6 2 4 2 2 18 6 11 27 Fast Attach 19 | 7 . . . . 1 3 2 6 Attach 27 | . . 1 . . 4 2 2 18 Detach . | . . . . . . . . . Swap 70 | . 2 3 1 2 10 9 3 40 Drop 62 | . . 5 2 1 9 10 13 22 Fire 191 | 6 28 15 . 2 13 16 19 92 Melee 91 | . . . . . . 6 6 79 Ram . | . . . . . . . . . Kick . | . . . . . . . . . Crush . | . . . . . . . . . Escape Stasis . | . . . . . . . . . Rewire . | . . . . . . . . . Trap . | . . . . . . . . . Miscellaneous . | . . . . . . . . . Route ------- -11/Scrapyard -10/Materials (discovered 2 exits: [*Mat] / [*Min]) -10/Mines (discovered 3 exits: [*Mat x2] / *Exi) -10/Exiles -9/Mines (discovered 2 exits: *Mat x2) -8/Materials -7/Factory -6/Factory -5/Factory (discovered 1 exit: *Upp) History --------- Turn | Location | Event 27 | -11/Scrapyard | Discovered new exit (range 15) 119 | -11/Scrapyard | Entered Materials 310 | -10/Materials | Build established: Mutant 376 | -10/Materials | Discovered new exit (range 6) 544 | -10/Materials | Discovered new exit (range 7) 920 | -10/Materials | Entered Mines 951 | -10/Mines | Core integrity fell below 50% 1001 | -10/Mines | Learned Materials trap positions 1106 | -10/Mines | Assembled infested the area 1166 | -10/Mines | Assisted by bots powering up and referring to "LRC-V3" 1355 | -10/Mines | Discovered new exit (range 8) 1575 | -10/Mines | Learned location of Storage (-9) 1798 | -10/Mines | Discovered new exit (range 12) 1852 | -10/Mines | Discovered new exit (range 5) 1860 | -10/Mines | Entered Exiles 1860 | -10/Exiles | Accompanied by 2 allies 1904 | -10/Exiles | Met 8R-AWN 1926 | -10/Exiles | Met EX-HEX 1971 | -10/Exiles | Met EX-BIN 1990 | -10/Exiles | Aligned with FarCom system 1992 | -10/Exiles | Given EX-Vault access code 2030 | -10/Exiles | Opened EX-Vault 2045 | -10/Exiles | Found Supersonic Drone Bay 2078 | -10/Exiles | Warned to stay clear of 0b10 Research branches 2126 | -10/Exiles | Met EX-DEC 2132 | -10/Exiles | Learned location of Zion (-6) 2316 | -10/Exiles | Discovered new exit (range 14) 2336 | -10/Exiles | Left Exiles lab with Supersonic Drone Bay 2336 | -10/Exiles | Entered Mines 2336 | -9/Mines | Accompanied by 2 allies 2687 | -9/Mines | Found a damaged Exp. Sensor Array with a note attached 2690 | -9/Mines | Found Prototype Device 2699 | -9/Mines | Discovered new exit (range 6) 2800 | -9/Mines | Discovered new exit (range 7) 2813 | -9/Mines | Entered Materials 2813 | -8/Materials | Accompanied by 2 allies 2813 | -8/Materials | Evolved 4 slots: Propulsion x1, Utility x3 2814 | -8/Materials | Loaded intel: 12 trap records 2815 | -8/Materials | Identified Exp. Sensor Array 3071 | -8/Materials | Discovered new exit (range 37) 3953 | -8/Materials | Build established: Scavenger-Mutant 5335 | -8/Materials | Entered Factory 5335 | -7/Factory | Evolved 2 slots: Propulsion x1, Utility x1 5955 | -7/Factory | Build established: Assassin 6441 | -7/Factory | Discovered new exit (range 12) 6520 | -7/Factory | Build established: Skirmisher 6561 | -7/Factory | Found Powered Armor 6811 | -7/Factory | Entered another Factory area 6811 | -6/Factory | Evolved 2 slots: Utility x2 7047 | -6/Factory | Build established: Assassin 7626 | -6/Factory | Build established: Skirmisher 8527 | -6/Factory | Discovered new exit (range 14) 8606 | -6/Factory | Identified exit to Factory 8874 | -6/Factory | Entered another Factory area 8874 | -5/Factory | Evolved 2 slots: Utility x2 9574 | -5/Factory | Build established: Scavenger-Assassin 9874 | -5/Factory | Build established: Scavenger-Skirmisher 10809 | -5/Factory | System corruption reached 10% 10862 | -5/Factory | Lost 3 parts (1n2u) 11658 | -5/Factory | Build established: Assassin 12181 | -5/Factory | Discovered new exit (range 14) 12289 | -5/Factory | Identified exit to Upper Caves 12324 | -5/Factory | Build established: Gladiator 12774 | -5/Factory | First assault squad dispatched 13186 | -5/Factory | Central database locked down 13479 | -5/Factory | Lost 3 parts (1n2u) 13806 | -5/Factory | Build established: Assassin 13861 | -5/Factory | Core integrity fell below 50% 14154 | -5/Factory | Build established: Gladiator 14275 | -5/Factory | Core integrity fell below 20% 14325 | -5/Factory | Lost 9 parts (1p3n3u2w) 14448 | -5/Factory | Destroyed by P-70 Sage with High-powered Shock Rifle Last Messages --------------- 14406_ K-01 Serf collects debris. 14416_ System corrupted: Component data lost. 14417_ K-01 Serf collects debris. 14421_ U-05 Engineer lays Concrete. 14423_ U-05 Engineer builds a Wall. 14424_ K-01 Serf collects debris. 14428_ U-05 Engineer lays Concrete. 14430_ U-05 Engineer builds a Wall. 14431_ K-01 Serf collects debris. 14435_ U-05 Engineer lays Concrete. 14437_ U-05 Engineer builds a Door. 14437_ K-01 Serf collects debris. 14442_ U-05 Engineer lays Concrete. 14443_ U-05 Engineer builds a Wall. 14444_ K-01 Serf collects debris. 14445_ Slug penetrates P-70 Sage. 14445_ U-05 Engineer destroyed. 14448_ Slug penetrates P-70 Sage. 14448_ P-70 Sage destroyed. 14448_ K-01 Serf collects debris. Map ----- +----------------------------------------------------+ | ????????????# #??????""???????## """" # | | ????????????# #??????""???????## """" # | | ????????????# #???????????????## """" # | | ????????????# #???????????????## """" # | | ????????????# #???????????????## + | | ????????????# #???????########## # | | ????????????# #??????############+####### | | ????????????# #??????## " %%%! [ # | | ????????????# #??????####### * %|! # | | ????????????# #???????###### """""" # | | ????????????# ##########??## """""" # | | ????????????# # #??## """""" # | | ????????????# # #??## """""" + | | ???########## # #??## # | | ???# [ # # #??## """""" =# | | ???# # # #??## """""" ! ###### | | ???# ! # # #??## """""" ! ###### | | ???# # # ##### """""" ##???? | | ???# + + ; ### ##??## | | ???# # # ;###############+##??## | | ???# # ; ;;## T ### ##??## | | ???# # ; # ### ##??## | | ???# # # ! !### ##??## | | ???#########" p # ### ##??## | | ???????????## %#[[ k #####+####### ##??## | | ???????????# |%;%| @ ### ##### ###### | | ???????????#T =#!= ### ##### ###### | | ???????????## # ### ! + | | ???????????# ## ;;###### ############ | | ???????????## % # ####???## ### [ # | | ???????????# % %% # ??????#### ##### """ # | | ???????????## ################# ##### """ # | | ???????????# % ##??# " # | | ??????????# # ##??# ] "F" # | | ??????????# # ##??# """ # | | ??????????#?# ###+##########+##+##### ?? | | ????????????# #??? ???# # ???? | | ????????????# #???? ?# "" # ?????? | | ????????????# #????? # """ " " " #+##+##### | | ????????????# +?????? # "R " " " # | | ????????????# #??????? # """ " " " # | | ????????????# #????????# """ " " " + | | ????????????# #????????# " " " # | | ????????????##### #????????# " " " # | | ????????????????? #????????# " " " ### #### | | ????????????????? #????????# " " " #?# #?## | | ????????????????? #????????# " " " #?# #??? | | ????????????????? #????????# #?# #??? | | ????????????????? #??"""???#######+######?# #??? | | ????????????????? #??"R"??????????????????# #??? | +----------------------------------------------------+ Best States ------------- Heat Dissipation 71 Energy Generation 21 Energy Capacity 315 Matter Stores 300 Matter Capacity 300 Sight Range 22 Robot Scan Range 20 Terrain Scan Density 10 Armor Coverage 400 Resistance: KI 30 Evasion (%) 42 Targeting Accuracy 8 Melee Accuracy 16 Recoil Reduction 10 Item Schematics ----------------- None Robot Schematics ------------------ None Fabricated ------------ Nothing Repaired ---------- Nothing Studied --------- Lgt. Treads | -8/Materials | Hacked Axe | -8/Materials | Hacked Gauss Cannon | -5/Factory | Hacked Arm. Treads | -5/Factory | Hacked Magnetic Acceleration Cannon | -5/Factory | Hacked Hvy. Pick | -5/Factory | Hacked Neutrino Core | -5/Factory | Hacked Alien Tech Used ----------------- None Achievements -------------- None Challenges ------------ None Game ------ Seed CorruptionCarbideDetector Manual? 0 Play Time 05:17:11 Cumulative 263.3 hours Start 2025.11.27 @ 01:29:47 End 2025.12.01 @ 16:13:26 Sessions 5 Manual Loads 0 Difficulty Rogue Special Mode None Game No. 114 Rogue 114 Adventurer 0 Explorer 0 Win Type - Total 4 Types 4/0/0/0/0/0/0/0/0/0 Lore% 52 Gallery% 56 Achievement% 41 Wizard Run 0 Options --------- Layout 0 ASCII 0 Keyboard 0 Movement Numpad Keybinds 0 Fullscreen 2 Font 24/Smallcaps Map View 113x50 Zoom Use 0% Tactical HUD 1 Map Filters NONE Filters NONE Steam 1 RUN: 15a92c33-4008-489d-b764-65ccd4872fd3